fUSD/lending_fUSD_20250826
["ID","MTS","AMOUNT","RATE_DAILY","PERIOD"]
[381380687,1756171849549,-151.0,0.00018451,2]
[381380688,1756171849559,-151.0,0.00018451,2]
[381380689,1756171849568,-151.0,0.00018451,2]
[381380690,1756171849578,-151.0,0.00018451,2]
[381380691,1756171849587,-151.0,0.00018451,2]
[381380692,1756171849597,-1117.17,0.00018451,2]
[381380693,1756171849606,-547.41,0.00018451,2]
[381380694,1756171849615,-151.0,0.00018451,2]
[381380695,1756171849624,-400.0,0.00018451,2]
[381380696,1756171849633,-151.0,0.00018451,2]
[381380698,1756171850130,-400.0,0.00018451,2]
[381380699,1756171850140,-151.0,0.00018451,2]
[381380700,1756171850150,-1113.46,0.00018451,2]
[381380701,1756171850159,-151.0,0.00018451,2]
[381380702,1756171850168,-400.0,0.00018451,2]
[381380703,1756171850178,-151.0,0.00018451,2]
[381380704,1756171850187,-400.0,0.00018451,2]
[381380705,1756171850196,-400.0,0.00018451,2]
[381380706,1756171850205,-698.25,0.00018451,2]
[381380707,1756171850215,-400.0,0.00018451,2]
[381380708,1756171850226,-755.49,0.00018451,2]
[381380709,1756171850236,-151.0,0.00018451,2]
[381380710,1756171850245,-400.0,0.00018451,2]
[381380711,1756171850254,-400.0,0.00018451,2]
[381380712,1756171850264,-911.09,0.00018451,2]
[381380713,1756171850273,-1147.49,0.00018451,2]
[381380714,1756171850282,-400.0,0.00018451,2]
[381380715,1756171850292,-400.0,0.00018451,2]
[381380716,1756171850301,-1279.11,0.00018451,2]
[381380717,1756171850311,-500.0,0.00018451,2]
[381380718,1756171850320,-151.0,0.00018451,2]
[381380719,1756171850329,-745.29,0.00018451,2]
[381380720,1756171850339,-1552.96,0.00018451,2]
[381380721,1756171850349,-151.0,0.00018451,2]
[381380722,1756171850359,-151.0,0.00018451,2]
[381380723,1756171850368,-471.19,0.00018451,2]
[381380724,1756171850378,-1168.0,0.00018451,2]
[381380725,1756171850387,-400.0,0.00018451,2]
[381380726,1756171850396,-151.0,0.00018451,2]
[381380727,1756171850405,-400.0,0.00018451,2]
[381380728,1756171850415,-1394.94,0.00018451,2]
[381380729,1756171850424,-151.0,0.00018451,2]
[381380730,1756171850434,-151.0,0.00018451,2]
[381380731,1756171850443,-1230.51,0.00018451,2]
[381380732,1756171850453,-151.0,0.00018451,2]
[381380733,1756171850462,-151.0,0.00018451,2]
[381380734,1756171850474,-237.837027,0.00018451,2]
[381380735,1756171850483,-230.097208,0.00018451,2]
[381380736,1756171850492,-767.02,0.00018451,2]
[381380737,1756171850502,-702.68,0.00018451,2]
[381380738,1756171850511,-170.694354,0.00018451,2]
[381380739,1756171850521,-170.694354,0.00018451,2]
[381380740,1756171850530,-170.694354,0.00018451,2]
[381380741,1756171850540,-1107.71,0.00018451,2]
[381380742,1756171850549,-170.694354,0.00018451,2]
[381380743,1756171850559,-400.0,0.00018451,2]
[381380744,1756171850568,-472.27,0.00018451,2]
[381380745,1756171850577,-760.8,0.00018451,2]
[381380746,1756171850587,-266.214952,0.00018451,2]
[381380747,1756171850596,-757.7,0.00018451,2]
[381380748,1756171850606,-400.0,0.00018451,2]
[381380749,1756171850615,-400.0,0.00018451,2]
[381380750,1756171850624,-710.51,0.00018451,2]
[381380751,1756171850634,-1251.55,0.00018451,2]
[381380752,1756171850643,-400.0,0.00018451,2]
[381380753,1756171850652,-400.0,0.00018451,2]
[381380754,1756171850661,-636.93,0.00018451,2]
[381380755,1756171850671,-161.317619,0.00018451,2]
[381380756,1756171850680,-400.0,0.00018451,2]
[381380757,1756171850689,-161.317619,0.00018451,2]
[381380758,1756171850698,-755.88,0.00018451,2]
[381380759,1756171850708,-161.317619,0.00018451,2]
[381380760,1756171850717,-161.317619,0.00018451,2]
[381380761,1756171850727,-400.0,0.00018451,2]
[381380762,1756171850736,-151.237435,0.00018451,2]
[381380763,1756171850745,-400.0,0.00018451,2]
[381380764,1756171850755,-5504.0,0.00018451,2]
[381380765,1756171850764,-159.383364,0.00018451,2]
[381380766,1756171850773,-1243.47,0.00018451,2]
[381380767,1756171850783,-776.860128,0.00018451,2]
[381380768,1756171850793,-400.0,0.00018451,2]
[381380769,1756171850802,-803.16,0.00018451,2]
[381380770,1756171850811,-400.0,0.00018451,2]
[381380771,1756171850821,-776.860128,0.00018451,2]
[381380772,1756171850830,-776.860128,0.00018451,2]
[381380773,1756171850839,-776.860128,0.00018451,2]
[381380774,1756171850849,-400.0,0.00018451,2]
[381380775,1756171850858,-1313.22,0.00018451,2]
[381380776,1756171850867,-151.0,0.00018451,2]
[381380777,1756171850877,-151.0,0.00018451,2]
[381380778,1756171850889,-151.0,0.00018451,2]
[381380779,1756171850898,-151.0,0.00018451,2]
[381380780,1756171850908,-151.0,0.00018451,2]
[381380781,1756171850917,-400.0,0.00018451,2]
[381380782,1756171850927,-151.0,0.00018451,2]
[381380783,1756171850937,-1055.37,0.00018451,2]
[381380784,1756171850947,-400.0,0.00018451,2]
[381380785,1756171850956,-151.0,0.00018451,2]
[381380786,1756171850967,-1324.36,0.00018451,2]
[381380787,1756171850978,-151.0,0.00018451,2]
[381380788,1756171850987,-151.0,0.00018451,2]
[381380789,1756171850998,-667.58,0.00018451,2]
[381380790,1756171851007,-151.0,0.00018451,2]
[381380791,1756171851017,-151.0,0.00018451,2]
[381380792,1756171851026,-623.96,0.00018451,2]
[381380793,1756171851036,-1265.6,0.00018451,2]
[381380794,1756171851046,-151.0,0.00018451,2]
[381380795,1756171851056,-1266.39,0.00018451,2]
[381380796,1756171851066,-300.0,0.00018451,2]
[381380797,1756171851075,-1587.1,0.00018451,2]
[381380798,1756171851085,-526.8,0.00018451,2]
[381380799,1756171851094,-151.0,0.00018451,2]
[381380800,1756171851104,-417.13,0.00018451,2]
[381380801,1756171851115,-151.0,0.00018451,2]
[381380802,1756171851125,-151.0,0.00018451,2]
[381380803,1756171851134,-151.0,0.00018451,2]
[381380804,1756171851144,-880.62,0.00018451,2]
[381380805,1756171851156,-151.0,0.00018451,2]
[381380806,1756171851166,-400.0,0.00018451,2]
[381380807,1756171851176,-151.0,0.00018451,2]
[381380808,1756171851186,-151.0,0.00018451,2]
[381380809,1756171851195,-151.0,0.00018451,2]
[381380810,1756171851204,-199.475886,0.00018451,2]
[381380811,1756171851214,-400.0,0.00018451,2]
[381380812,1756171851225,-151.0,0.00018451,2]
[381380813,1756171851234,-151.0,0.00018451,2]
[381380814,1756171851244,-151.0,0.00018451,2]
[381380815,1756171851254,-151.0,0.00018451,2]
[381380816,1756171851265,-151.0,0.00018451,2]
[381380817,1756171851276,-1299.29,0.00018451,2]
[381380818,1756171851287,-400.0,0.00018451,2]
[381380819,1756171851296,-400.0,0.00018451,2]
[381380820,1756171851306,-1155.38,0.00018451,2]
[381380821,1756171851316,-151.0,0.00018451,2]
[381380822,1756171851326,-400.0,0.00018451,2]
[381380823,1756171851336,-1091.76,0.00018451,2]
[381380824,1756171851346,-400.0,0.00018451,2]
[381380825,1756171851355,-784.83,0.00018451,2]
[381380826,1756171851366,-400.0,0.00018451,2]
[381380827,1756171851375,-775.74,0.00018451,2]
[381380828,1756171851386,-882.03,0.00018451,2]
[381380829,1756171851395,-400.0,0.00018451,2]
[381380830,1756171851405,-151.0,0.00018451,2]
[381380831,1756171851414,-1638.34,0.00018451,2]
[381380832,1756171851425,-400.0,0.00018451,2]
[381380833,1756171851435,-151.0,0.00018451,2]
[381380834,1756171851445,-1114.95,0.00018451,2]
[381380835,1756171851455,-411.20432301,0.00018451,2]
[381380836,1756171851466,-400.0,0.00018451,2]
[381380837,1756171851478,-151.0,0.00018451,2]
[381380838,1756171851488,-400.0,0.00018451,2]
[381380839,1756171851498,-151.0,0.00018451,2]
[381380840,1756171851507,-1336.39,0.00018451,2]
[381380841,1756171851517,-400.35590768,0.00018451,2]
[381380842,1756171851527,-484.07,0.00018451,2]
[381380843,1756171851536,-151.0,0.00018451,2]
[381380844,1756171851547,-151.0,0.00018451,2]
[381380845,1756171851557,-151.0,0.00018451,2]
[381380846,1756171851566,-151.0,0.00018451,2]
[381380847,1756171851575,-151.0,0.00018451,2]
[381380848,1756171851585,-989.51,0.00018451,2]
[381380849,1756171851594,-1332.89,0.00018451,2]
[381380850,1756171851603,-519.04,0.00018451,2]
[381380851,1756171851613,-400.0,0.00018451,2]
[381380852,1756171851622,-420.28,0.00018451,2]
[381380853,1756171851631,-400.0,0.00018452,2]
[381380854,1756171851641,-400.0,0.00018452,2]
[381380855,1756171851651,-400.0,0.00018452,2]
[381380856,1756171851662,-500.0,0.00018452,2]
[381380857,1756171851673,-400.0,0.00018452,2]
[381380858,1756171851684,-400.0,0.00018452,2]
[381380859,1756171851695,-400.0,0.00018452,2]
[381380860,1756171851704,-400.0,0.00018452,2]
[381380861,1756171851713,-400.0,0.00018452,2]
[381380862,1756171851722,-400.0,0.00018452,2]
[381380863,1756171851732,-400.0,0.00018452,2]
[381380864,1756171851741,-169.14440257,0.00018452,2]
[381380865,1756171851750,-400.0,0.00018452,2]
[381380866,1756171851761,-400.0,0.00018452,2]
[381380867,1756171851771,-400.0,0.00018452,2]
[381380868,1756171851780,-400.0,0.00018452,2]
[381380869,1756171851791,-400.0,0.00018452,2]
[381380870,1756171851801,-821.77,0.00018452,2]
[381380871,1756171851812,-400.0,0.00018452,2]
[381380872,1756171851822,-400.0,0.00018452,2]
[381380873,1756171851835,-400.0,0.00018452,2]
[381380874,1756171851845,-400.0,0.00018452,2]
[381380875,1756171851855,-400.0,0.00018452,2]
[381380876,1756171851866,-987.34,0.00018452,2]
[381380877,1756171851876,-400.0,0.00018452,2]
[381380878,1756171851891,-400.0,0.00018452,2]
[381380879,1756171851900,-400.0,0.00018452,2]
[381380880,1756171851911,-400.0,0.00018452,2]
[381380881,1756171851920,-400.0,0.00018452,2]
[381380882,1756171851930,-400.0,0.00018452,2]
[381380883,1756171851939,-1121.87,0.00018452,2]
[381380884,1756171851949,-400.0,0.00018452,2]
[381380885,1756171851959,-1036.56,0.00018452,2]
[381380886,1756171851970,-453.8,0.00018452,2]
[381380887,1756171851980,-400.0,0.00018452,2]
[381380888,1756171851990,-527.65,0.00018452,2]
[381380889,1756171851999,-597.32,0.00018452,2]
[381380890,1756171852008,-151.469869,0.00018452,2]
[381380891,1756171852017,-710.19,0.00018452,2]
[381380892,1756171852026,-400.0,0.00018452,2]
[381380893,1756171852037,-721.26,0.00018452,2]
[381380894,1756171852047,-464.93,0.00018452,2]
[381380895,1756171852056,-400.0,0.00018452,2]
[381380896,1756171852065,-400.0,0.00018452,2]
[381380897,1756171852074,-429.76,0.00018452,2]
[381380898,1756171852084,-740.29,0.00018452,2]
[381380899,1756171852096,-400.0,0.00018452,2]
[381380900,1756171852108,-471.16968827,0.00018452,2]
[381380901,1756171852118,-1052.03,0.00018452,2]
[381380902,1756171852127,-400.0,0.00018452,2]
[381380903,1756171852136,-400.0,0.00018452,2]
[381380904,1756171852146,-400.0,0.00018452,2]
[381380905,1756171852156,-400.0,0.00018452,2]
[381380906,1756171852165,-263.85324456,0.00018452,2]
[381380907,1756171852175,-1071.09,0.00018452,2]
[381380908,1756171852185,-725.91,0.00018452,2]
[381380909,1756171852194,-400.0,0.00018452,2]
[381380910,1756171852203,-1225.86,0.00018452,2]
[381380911,1756171852213,-400.0,0.00018452,2]
[381380912,1756171852223,-400.0,0.00018452,2]
[381380913,1756171852233,-400.0,0.00018452,2]
[381380914,1756171852243,-400.0,0.00018452,2]
[381380915,1756171852252,-400.0,0.00018452,2]
[381380916,1756171852262,-400.0,0.00018452,2]
[381380917,1756171852271,-641.3,0.00018452,2]
[381380918,1756171852281,-400.0,0.00018452,2]
[381380919,1756171852291,-400.0,0.00018452,2]
[381380920,1756171852300,-621.3,0.00018452,2]
[381380921,1756171852310,-400.0,0.00018452,2]
[381380922,1756171852320,-400.0,0.00018452,2]
[381380923,1756171852331,-1031.8,0.00018452,2]
[381380924,1756171852341,-500.0,0.00018452,2]
[381380925,1756171852351,-400.0,0.00018452,2]
[381380926,1756171852361,-1259.07,0.00018452,2]
[381380927,1756171852370,-710.84,0.00018452,2]
[381380928,1756171852380,-400.0,0.00018452,2]
[381380929,1756171852390,-555.76,0.00018452,2]
[381380930,1756171852400,-400.0,0.00018452,2]
[381380931,1756171852410,-400.0,0.00018452,2]
[381380932,1756171852419,-1041.33,0.00018452,2]
[381380933,1756171852429,-400.0,0.00018452,2]
[381380934,1756171852439,-448.41,0.00018452,2]
[381380935,1756171852449,-400.0,0.00018452,2]
[381380936,1756171852458,-400.0,0.00018452,2]
[381380937,1756171852468,-402.00421938,0.00018452,2]
[381380938,1756171852478,-400.0,0.00018452,2]
[381380939,1756171852488,-400.0,0.00018452,2]
[381380940,1756171852498,-400.0,0.00018452,2]
[381380941,1756171852507,-573.97,0.00018452,2]
[381380942,1756171852517,-693.27,0.00018452,2]
[381380943,1756171852527,-676.94,0.00018452,2]
[381380944,1756171852536,-400.0,0.00018452,2]
[381380945,1756171852682,-508.91,0.00018452,2]
[381380946,1756171852693,-449.37,0.00018452,2]
[381380947,1756171852703,-400.0,0.00018452,2]
[381380948,1756171852712,-804.22,0.00018452,2]
[381380949,1756171852721,-761.56,0.00018452,2]
[381380950,1756171852731,-779.32,0.00018452,2]
[381380951,1756171852740,-400.0,0.00018452,2]
[381380952,1756171852749,-817.81,0.00018452,2]
[381380953,1756171852759,-1472.94,0.00018452,2]
[381380954,1756171852769,-1035.04,0.00018452,2]
[381380955,1756171852778,-400.0,0.00018452,2]
[381380956,1756171852788,-548.71,0.00018452,2]
[381380957,1756171852800,-200.0,0.00018452,2]
[381380958,1756171852810,-400.0,0.00018452,2]
[381380959,1756171852820,-736.33,0.00018452,2]
[381380960,1756171852829,-400.0,0.00018452,2]
[381380961,1756171852839,-400.0,0.00018452,2]
[381380962,1756171852848,-639.43,0.00018452,2]
[381380963,1756171852857,-921.52,0.00018452,2]
[381380964,1756171852867,-544.56,0.00018452,2]
[381380965,1756171852876,-261.76024984,0.00018452,2]
[381380966,1756171852886,-400.0,0.00018452,2]
[381380967,1756171852898,-400.0,0.00018452,2]
[381380968,1756171852907,-400.0,0.00018452,2]
[381380969,1756171852917,-610.18,0.00018452,2]
[381380970,1756171852926,-427.78,0.00018452,2]
[381380971,1756171852936,-1004.97,0.00018452,2]
[381380972,1756171852945,-400.0,0.00018452,2]
[381380973,1756171852956,-400.0,0.00018452,2]
[381380974,1756171852966,-171.547298,0.00018452,2]
[381380975,1756171852977,-417.56,0.00018452,2]
[381380976,1756171852986,-786.02,0.00018452,2]
[381380977,1756171852995,-400.0,0.00018452,2]
[381380978,1756171853005,-539.01,0.00018452,2]
[381380979,1756171853015,-827.82,0.00018452,2]
[381380980,1756171853024,-1190.49,0.00018452,2]
[381380981,1756171853035,-400.0,0.00018452,2]
[381380982,1756171853044,-400.0,0.00018452,2]
[381380983,1756171853056,-778.55,0.00018452,2]
[381380984,1756171853066,-698.06,0.00018452,2]
[381380985,1756171853076,-789.88,0.00018452,2]
[381380986,1756171853085,-500.0,0.00018452,2]
[381380987,1756171853094,-450.59,0.00018452,2]
[381380988,1756171853103,-1342.4,0.00018452,2]
[381380989,1756171853114,-400.0,0.00018452,2]
[381380990,1756171853124,-400.0,0.00018452,2]
[381380991,1756171853135,-752.67,0.00018452,2]
[381380992,1756171853145,-1000.0,0.00018452,2]
[381380993,1756171853155,-400.0,0.00018452,2]
[381380994,1756171853165,-1440.04,0.00018452,2]
[381380995,1756171853175,-646.62,0.00018452,2]
[381380996,1756171853184,-400.0,0.00018452,2]
[381380997,1756171853194,-400.0,0.00018452,2]
[381380998,1756171853204,-400.0,0.00018452,2]
[381380999,1756171853214,-1157.91,0.00018452,2]
[381381000,1756171853225,-400.0,0.00018452,2]
[381381001,1756171853234,-415.11,0.00018452,2]
[381381002,1756171853244,-400.0,0.00018452,2]
[381381003,1756171853254,-400.0,0.00018452,2]
[381381004,1756171853267,-782.79,0.00018452,2]
[381381005,1756171853277,-400.0,0.00018452,2]
[381381006,1756171853288,-400.0,0.00018452,2]
[381381007,1756171853297,-400.0,0.00018452,2]
[381381008,1756171853307,-721.37,0.00018452,2]
[381381009,1756171853317,-1311.86,0.00018452,2]
[381381010,1756171853326,-812.01,0.00018452,2]
[381381011,1756171853335,-881.92,0.00018452,2]
[381381012,1756171853345,-400.0,0.00018452,2]
[381381013,1756171853354,-846.83,0.00018452,2]
[381381014,1756171853364,-956.61,0.00018452,2]
[381381015,1756171853373,-400.0,0.00018452,2]
[381381016,1756171853383,-400.0,0.00018452,2]
[381381017,1756171853392,-400.0,0.00018452,2]
[381381018,1756171853403,-400.0,0.00018452,2]
[381381019,1756171853413,-1707.29,0.00018452,2]
[381381020,1756171853423,-400.0,0.00018452,2]
[381381021,1756171853432,-686.01,0.00018452,2]
[381381022,1756171853442,-788.66,0.00018452,2]
[381381023,1756171853452,-495.67,0.00018452,2]
[381381024,1756171853462,-531.29,0.00018452,2]
[381381025,1756171853472,-1715.24,0.00018452,2]
[381381026,1756171853481,-649.16,0.00018452,2]
[381381027,1756171853491,-400.0,0.00018452,2]
[381381028,1756171853500,-879.48,0.00018452,2]
[381381029,1756171853510,-61.81908908,0.00018452,2]
[381381030,1756171856259,-401.25205955,0.00016438,2]
[381381031,1756171856270,-558.21,0.00016986,2]
[381381032,1756171856280,-558.21,0.0001726,2]
[381381033,1756171856290,-151.0,0.00017423,2]
[381381034,1756171856301,-558.21,0.00017534,2]
[381381035,1756171856312,-558.21,0.00017808,2]
[381381036,1756171856321,-558.21,0.00018082,2]
[381381037,1756171856331,-458.69889469,0.00018294,2]
[381381038,1756171856340,-151.0,0.00018353,2]
[381381039,1756171856350,-1032.45,0.00018356,2]
[381381040,1756171856359,-558.21,0.00018356,2]
[381381041,1756171856368,-265.428756,0.00018451,2]
[381381042,1756171856378,-401.25205955,0.00018451,2]
[381381043,1756171856387,-680.44091092,0.00018452,2]
[381381044,1756171856397,-400.0,0.00018452,2]
[381381045,1756171856407,-613.6,0.00018452,2]
[381381046,1756171856416,-467.57,0.00018452,2]
[381381047,1756171856426,-400.0,0.00018452,2]
[381381048,1756171856435,-648.9,0.00018452,2]
[381381049,1756171856445,-400.0,0.00018452,2]
[381381050,1756171856455,-400.0,0.00018452,2]
[381381051,1756171856464,-505.03,0.00018452,2]
[381381052,1756171856475,-882.0,0.00018452,2]
[381381053,1756171856485,-453.25,0.00018452,2]
[381381054,1756171856494,-436.97,0.00018452,2]
[381381055,1756171856503,-1226.15,0.00018452,2]
[381381056,1756171856513,-736.01,0.00018452,2]
[381381057,1756171856522,-477.01,0.00018452,2]
[381381058,1756171856532,-200.16751689,0.00018452,2]
[381381059,1756171856542,-400.0,0.00018452,2]
[381381060,1756171856552,-400.0,0.00018452,2]
[381381061,1756171856562,-400.0,0.00018452,2]
[381381062,1756171856572,-697.23,0.00018452,2]
[381381063,1756171856581,-400.0,0.00018452,2]
[381381064,1756171856591,-1464.39,0.00018452,2]
[381381065,1756171856600,-1398.95,0.00018452,2]
[381381066,1756171856612,-151.0,0.00018452,2]
[381381067,1756171856622,-400.0,0.00018452,2]
[381381068,1756171856632,-400.0,0.00018452,2]
[381381069,1756171856642,-151.0,0.00018452,2]
[381381070,1756171856653,-620.91,0.00018452,2]
[381381071,1756171856664,-151.0,0.00018452,2]
[381381072,1756171856674,-485.63,0.00018452,2]
[381381073,1756171856683,-1288.6,0.00018452,2]
[381381074,1756171856695,-247.320626,0.00018452,2]
[381381075,1756171856704,-151.0,0.00018452,2]
[381381076,1756171856715,-151.0,0.00018452,2]
[381381077,1756171856726,-1117.76,0.00018452,2]
[381381078,1756171856735,-150.0,0.00018452,2]
[381381079,1756171856744,-827.91,0.00018452,2]
[381381080,1756171856753,-1699.0,0.00018452,2]
[381381081,1756171856763,-611.96,0.00018452,2]
[381381082,1756171856773,-732.7,0.00018452,2]
[381381083,1756171856782,-342.97908,0.00018452,2]
[381381084,1756171856791,-151.0,0.00018452,2]
[381381085,1756171856801,-342.97908,0.00018452,2]
[381381086,1756171856810,-151.0,0.00018452,2]
[381381087,1756171856820,-342.97908,0.00018452,2]
[381381088,1756171856831,-342.97908,0.00018452,2]
[381381089,1756171856840,-500.0,0.00018452,2]
[381381090,1756171856852,-500.0,0.00018452,2]
[381381091,1756171856862,-973.62,0.00018452,2]
[381381092,1756171856872,-400.0,0.00018452,2]
[381381093,1756171856881,-151.0,0.00018452,2]
[381381094,1756171856898,-775.92,0.00018452,2]
[381381095,1756171856907,-626.7,0.00018452,2]
[381381096,1756171856916,-151.0,0.00018452,2]
[381381097,1756171856926,-527.54,0.00018452,2]
[381381098,1756171856937,-856.1,0.00018452,2]
[381381099,1756171856947,-981.08,0.00018452,2]
[381381100,1756171856956,-500.0,0.00018452,2]
[381381101,1756171856968,-1198.49,0.00018452,2]
[381381102,1756171856979,-400.0,0.00018452,2]
[381381103,1756171856989,-832.54,0.00018452,2]
[381381104,1756171856999,-150.0,0.00018452,2]
[381381105,1756171857010,-400.0,0.00018452,2]
[381381106,1756171857019,-883.78,0.00018452,2]
[381381107,1756171857029,-151.0,0.00018452,2]
[381381108,1756171857039,-400.0,0.00018452,2]
[381381109,1756171857048,-558.29,0.00018452,2]
[381381110,1756171857057,-400.0,0.00018452,2]
[381381111,1756171857067,-459.02,0.00018452,2]
[381381112,1756171857076,-400.0,0.00018452,2]
[381381113,1756171857085,-1133.1,0.00018452,2]
[381381114,1756171857095,-1298.51,0.00018452,2]
[381381115,1756171857104,-400.0,0.00018452,2]
[381381116,1756171857113,-719.12,0.00018452,2]
[381381117,1756171857123,-400.0,0.00018452,2]
[381381118,1756171857132,-1895.86,0.00018452,2]
[381381119,1756171857141,-509.54,0.00018452,2]
[381381120,1756171857150,-151.0,0.00018452,2]
[381381121,1756171857159,-436.19,0.00018452,2]
[381381122,1756171857170,-151.0,0.00018452,2]
[381381123,1756171857179,-1006.45,0.00018452,2]
[381381124,1756171857190,-1353.65,0.00018452,2]
[381381125,1756171857200,-400.0,0.00018452,2]
[381381126,1756171857210,-151.0,0.00018452,2]
[381381127,1756171857222,-763.07,0.00018452,2]
[381381128,1756171857232,-151.0,0.00018452,2]
[381381129,1756171857242,-400.0,0.00018452,2]
[381381130,1756171857254,-151.0,0.00018452,2]
[381381131,1756171857263,-568.82,0.00018452,2]
[381381132,1756171857273,-400.0,0.00018452,2]
[381381133,1756171857283,-1258.93,0.00018452,2]
[381381134,1756171857293,-821.64,0.00018452,2]
[381381135,1756171857303,-1003.02,0.00018452,2]
[381381136,1756171857312,-400.0,0.00018452,2]
[381381137,1756171857323,-400.0,0.00018452,2]
[381381138,1756171857332,-846.66,0.00018452,2]
[381381139,1756171857341,-681.16,0.00018452,2]
[381381140,1756171857350,-416.38,0.00018452,2]
[381381141,1756171857360,-151.0,0.00018452,2]
[381381142,1756171857369,-547.29077433,0.00018452,2]
[381381143,1756171857381,-2655.18,0.00018452,2]
[381381144,1756171857390,-400.0,0.00018452,2]
[381381145,1756171857399,-151.0,0.00018452,2]
[381381146,1756171857409,-639.07,0.00018452,2]
[381381147,1756171857419,-710.44,0.00018452,2]
[381381148,1756171857428,-151.0,0.00018452,2]
[381381149,1756171857438,-400.0,0.00018452,2]
[381381150,1756171857447,-157.289234,0.00018452,2]
[381381151,1756171857456,-151.0,0.00018452,2]
[381381152,1756171857472,-669.57,0.00018452,2]
[381381153,1756171857483,-500.0,0.00018452,2]
[381381154,1756171857492,-151.0,0.00018452,2]
[381381155,1756171857502,-689.1,0.00018452,2]
[381381156,1756171857512,-151.0,0.00018452,2]
[381381157,1756171857521,-151.0,0.00018452,2]
[381381158,1756171857531,-400.0,0.00018452,2]
[381381159,1756171857540,-246.409217,0.00018452,2]
[381381160,1756171857550,-151.0,0.00018452,2]
[381381161,1756171857560,-151.0,0.00018452,2]
[381381162,1756171857569,-400.0,0.00018452,2]
[381381163,1756171857579,-151.0,0.00018452,2]
[381381164,1756171857589,-157.289234,0.00018452,2]
[381381165,1756171857598,-400.0,0.00018452,2]
[381381166,1756171857607,-967.98,0.00018452,2]
[381381167,1756171857617,-151.0,0.00018452,2]
[381381168,1756171857626,-157.289234,0.00018452,2]
[381381169,1756171857635,-151.0,0.00018452,2]
[381381170,1756171857645,-151.0,0.00018452,2]
[381381171,1756171857655,-157.289234,0.00018452,2]
[381381172,1756171857664,-151.0,0.00018452,2]
[381381173,1756171857674,-151.0,0.00018452,2]
[381381174,1756171857683,-308.543204,0.00018452,2]
[381381175,1756171857694,-400.0,0.00018452,2]
[381381176,1756171857703,-151.0,0.00018452,2]
[381381177,1756171857713,-1290.46,0.00018452,2]
[381381178,1756171857722,-400.0,0.00018452,2]
[381381179,1756171857733,-151.0,0.00018452,2]
[381381180,1756171857742,-308.543204,0.00018452,2]
[381381181,1756171857752,-533.72,0.00018452,2]
[381381182,1756171857761,-308.543204,0.00018452,2]
[381381183,1756171857771,-308.543204,0.00018452,2]
[381381184,1756171857780,-151.0,0.00018452,2]
[381381185,1756171857790,-1178.74,0.00018452,2]
[381381186,1756171857799,-151.0,0.00018452,2]
[381381187,1756171857809,-151.0,0.00018452,2]